[Event "British Championship 2024"]
[Site "Hull"]
[Date "2024.07.31"]
[Round "1.12"]
[White "Williams, Simon K"]
[Black "Badacsonyi, Stanley"]
[Result "1-0"]
[Annotator "TA"]
[ECO "A36"]
[WhiteElo "2450"]
[BlackElo "2132"]
[PlyCount "85"]
[EventDate "2024.07.31"]
[EventCountry "GBR"]
[SourceTitle "playchess.com"]
[Source "ChessBase"]
[SourceQuality "1"]
[TimeControl "40/5400+30:1800+30"]

{[%evp 20,85,-6,0,-8,0,0,-5,-14,-20,-19,-23,-15,-18,-24,-32,-20,-37,-35,-35,-35,-31,-13,-17,0,0,37,0,0,0,0,0,0,0,0,0,0,0,0,0,0,0,209,-2428,209,209,209,209,209,250,397,374,372,259,554,472,439,484,553,552,1333,1189,1118,1083,29976,29977,29982,29980]} 1. c4 {[%emt 0:00:05]} Nf6 {[%emt 0:00:07]} 2. Nc3 {[%emt 0:00:21]} g6 {[%emt 0:00:09]} 3. g3 {[%emt 0:00:21]} Bg7 {[%emt 0:00:06]} 4. Bg2 {[%emt 0:00:15]} O-O {[%emt 0:00:26]} 5. e4 {[%emt 0:00:20]} d6 {[%emt 0:00:05]} 6. Nge2 {[%emt 0:00:23]} c5 {[%emt 0:00:29]} 7. O-O {[%emt 0:00:26]} Nc6 {[%emt 0:00:09]} 8. d3 {[%emt 0:00:16]} Rb8 {[%emt 0:01:05]} 9. h3 {[%emt 0:00:48]} a6 {[%emt 0:00:09]} 10. a4 {[%emt 0:00:47]} Ne8 {[%emt 0:00:41]} 11. Be3 {[%emt 0:00:20]} b5 {[%emt 0:01:07]} 12. axb5 {[%emt 0:01:49]} axb5 {[%emt 0:00:26]} 13. cxb5 {[%emt 0:01:28]} Nd4 {[%emt 0:00:08] The position is equal.} 14. Rb1 {[%emt 0:00:11]} Nc7 {[%emt 0:05:57]} 15. b4 {[%emt 0:04:16]} Ncxb5 {[%emt 0:04:35]} 16. Nxb5 {[%emt 0:01:31]} (16. bxc5 {is interesting.} Nxc3 17. Nxc3 Rxb1 18. Qxb1 dxc5 19. Qa2) 16... Rxb5 {[%emt 0:00:46]} 17. Nxd4 {[%emt 0:06:16]} Bxd4 {[%emt 0:04:59]} 18. Bxd4 {[%emt 0:14:07]} cxd4 {[%emt 0:00:06]} 19. Qd2 {[%emt 0:00:10]} Bd7 {[%emt 0:02:33]} 20. f4 {[%emt 0:01:21]} Qb6 {[%emt 0:01:14]} 21. f5 {[%emt 0:04:56]} Rb8 {[%emt 0:06:03][%cal Rb5b4]} (21... gxf5 22. Qg5+ Kh8 23. Qxe7 $14) 22. Qh6 {[%emt 0:23:16] [#] aiming for fxg6.} d5 {[%emt 0:13:21]} (22... gxf5 23. Qg5+ Kf8 24. Qh5 $14 (24. exf5 f6 $16)) 23. exd5 {[%emt 0:08:17]} (23. Rf4 {simplifies} gxf5 24. Qg5+ Kh8 25. Qxe7 Qe6 26. Qxe6 fxe6 27. exf5 Rxb4 28. Rxb4 Rxb4 29. fxe6 Bxe6 30. Kf2) 23... Bxf5 {[%emt 0:04:20]} 24. Rbe1 {[%emt 0:00:05]} Rxb4 {[%emt 0:13:26]} 25. g4 $1 {[%emt 0:13:51]} Bxd3 {[%emt 0:02:38]} 26. Rxf7 {[%emt 0:00:24]} Kxf7 {[%emt 0:00:18]} 27. Qxh7+ {[%emt 0:00:46]} Kf8 {[%emt 0:00:08]} 28. Qh8+ {[%emt 0:04:35]} Kf7 {[%emt 0:00:33]} 29. Qh7+ $40 {[%emt 0:00:13][%mdl 128] White mounts an attack.} Kf8 {[%emt 0:00:07]} 30. Re6 {[%emt 0:08:20] Inhibits Qd6.} Qc7 {[%emt 0:06:02]} (30... Qc5 $11 31. Rc6 Qb5 (31... Rb1+ 32. Kh2 $11) 32. Qh8+ Kf7 33. Qh7+ Kf8 (33... Ke8 34. Rc7 Rb1+ 35. Kh2) 34. Qh8+ Kf7 35. Qh7+ Kf8 (35... Ke8 36. Rc7 Rb1+ 37. Kh2)) 31. Qh8+ {[%emt 0:02:18]} Kf7 {[%emt 0:00:32] [#]} 32. Rf6+ $3 {[%emt 0:00:07][%mdl 512]} exf6 {[%emt 0:00:28]} 33. Qh7+ {[%emt 0:00:02]} Kf8 {[%emt 0:02:04] ( -> ...Rb1+)} 34. Qxc7 {[%emt 0:00:04] And now d6 would win.} R4b7 {[%emt 0:03:52]} (34... Rb1+ {was called for.} 35. Kh2 R1b2) 35. Qc5+ $18 {[%emt 0:00:20]} Kg7 {[%emt 0:00:55]} 36. Qxd4 {[%emt 0:00:05][%cal Od5d6] Hoping for d6!} Bb5 $2 {[%emt 0:00:21]} (36... Bc2 37. d6 Rf7) 37. d6 {[%emt 0:00:38][%cal Og4g5] g5! is the strong threat.} Rd7 {[%emt 0:00:12]} 38. g5 {[%emt 0:00:15]} Rf8 {[%emt 0:00:51]} 39. h4 {[%emt 0:00:31]} Rff7 {[%emt 0:01:41]} 40. Bh3 {[%emt 0:00:25]} Rd8 {[%emt 0:00:22]} 41. Be6 {[%emt 0:30:18]} Rff8 {[%emt 0:30:52]} 42. Qb6 {[%emt 0:00:00]} Bd7 {[%emt 0:00:00]} 43. Qc7 {[%emt 0:00:00] Weighted Error Value: White=0.43/Black=0.80.  Loses game:     	---       	Black=1      Missed win:     	---       	Black=1      Mistake:       	---       	Black=2      Inaccurate:     	White=2     	Black=2      OK:         	White=13    	Black=6      Best:        	White=4     	Black=4      Strong:       	White=1     	---        Brilliant:      	White=1     	---} 1-0

[Event "British Championship 2024"]
[Site "Hull"]
[Date "2024.07.31"]
[Round "1.13"]
[White "Kanyamarala, Trisha"]
[Black "Merry, Alan B"]
[Result "1/2-1/2"]
[Annotator "RC"]
[ECO "D24"]
[WhiteElo "2219"]
[BlackElo "2429"]
[PlyCount "126"]
[EventDate "2024.07.31"]
[EventCountry "GBR"]
[SourceTitle "playchess.com"]
[Source "ChessBase"]
[SourceQuality "1"]
[TimeControl "40/5400+30:1800+30"]

1. d4 {[%emt 0:00:07]} Nf6 {[%emt 0:00:02]} 2. c4 {[%emt 0:00:13]} e6 {[%emt 0:00:04]} 3. Nf3 {[%emt 0:00:14]} d5 {[%emt 0:00:03]} 4. Nc3 {[%emt 0:00:11]} dxc4 {[%emt 0:00:06]} 5. e4 {[%emt 0:00:10]} b5 {[%emt 0:00:03]} 6. e5 {[%emt 0:00:24]} Nd5 {[%emt 0:00:03]} 7. Nxb5 {[%emt 0:00:13]} Nb6 {[%emt 0:00:07]} 8. Be2 {[%emt 0:01:33]} Nc6 {[%emt 0:00:09]} 9. Be3 {[%emt 0:00:26]} Be7 {[%emt 0:02:08]} 10. a3 {[%emt 0:00:47]} Na5 {[%emt 0:04:22]} 11. Qc2 {[%emt 0:01:58]} Bb7 {[%emt 0:02:53]} 12. Rd1 {[%emt 0:13:49]} O-O {[%emt 0:28:04]} 13. Nc3 {[%emt 0:00:36]} Qd7 {[%emt 0:07:29]} 14. h4 {[%emt 0:03:57]} f5 {[%emt 0:13:14]} 15. exf6 {[%emt 0:16:04]} gxf6 {[%emt 0:00:06]} 16. Bh6 {[%emt 0:14:14]} Rfe8 {[%emt 0:07:56]} 17. Rh3 {[%emt 0:05:56]} Kh8 {[%emt 0:01:05]} 18. h5 {[%emt 0:03:40]} Bf8 {[%emt 0:08:06]} 19. Bf4 {[%emt 0:06:15]} Bd6 {[%emt 0:02:56]} 20. Bh6 {[%emt 0:07:28]} Rg8 {[%emt 0:02:25]} 21. Kf1 {[%emt 0:02:44]} Bf8 {[%emt 0:04:55]} 22. Bf4 {[%emt 0:04:56]} Rg4 {[%emt 0:08:28]} 23. g3 {[%emt 0:14:21]} Rg7 {[%emt 0:04:39]} 24. Rh2 {[%emt 0:00:38]} Nb3 {[%emt 0:01:17]} 25. h6 {[%emt 0:01:26]} Rg6 {[%emt 0:01:16]} 26. Nh4 {[%emt 0:00:31]} Rg8 {[%emt 0:00:34]} 27. Nf3 {[%emt 0:00:28]} Bxf3 {[%emt 0:00:52]} 28. Bxf3 {[%emt 0:00:06]} Nxd4 {[%emt 0:00:31]} 29. Bxa8 {[%emt 0:01:04]} Nxc2 {[%emt 0:00:15]} 30. Rxd7 {[%emt 0:00:04]} Nxd7 {[%emt 0:00:03]} 31. Bxc7 {[%emt 0:00:43]} Bxa3 {[%emt 0:00:42]} 32. Be4 {[%emt 0:00:29]} Bxb2 {[%emt 0:01:03]} 33. Nd1 {[%emt 0:00:21]} Nd4 {[%emt 0:00:30]} 34. Nxb2 {[%emt 0:00:06]} c3 {[%emt 0:00:09]} 35. Nd3 {[%emt 0:00:42]} e5 {[%emt 0:00:49]} 36. Ba5 {[%emt 0:00:29]} c2 {[%emt 0:00:28]} 37. Bd2 {[%emt 0:00:52]} Nb3 {[%emt 0:00:32]} 38. Bc1 {[%emt 0:00:36]} Rc8 {[%emt 0:00:34]} 39. Bf5 {[%emt 0:00:33]} Rc3 {[%emt 0:00:26]} 40. Bb2 {[%emt 0:00:34]} Ndc5 {[%emt 0:00:29]} 41. Nc1 {[%emt 0:15:54]} Rc4 {[%emt 0:03:47]} 42. f3 {[%emt 0:00:37]} Nxc1 {[%emt 0:03:12]} 43. Bxc1 {[%emt 0:01:28]} Nb3 {[%emt 0:00:57]} 44. Ke1 {[%emt 0:09:43]} Nxc1 {[%emt 0:12:05]} 45. Bxc2 {[%emt 0:00:09]} a5 {[%emt 0:01:06]} 46. Kd1 {[%emt 0:04:53]} Na2 {[%emt 0:00:59]} 47. Bb3 {[%emt 0:00:40]} Rd4+ {[%emt 0:00:56]} 48. Kc2 {[%emt 0:00:33]} Nb4+ {[%emt 0:00:08]} 49. Kb2 {[%emt 0:00:23]} f5 {[%emt 0:09:36]} 50. Rh5 {[%emt 0:00:33]} Rd6 {[%emt 0:00:46]} 51. Rxf5 {[%emt 0:00:37]} Rxh6 {[%emt 0:00:09]} 52. Ka3 {[%emt 0:01:02]} Nc6 {[%emt 0:00:52]} 53. Bd5 {[%emt 0:00:00]} Rd6 {[%emt 0:01:41]} 54. Bxc6 {[%emt 0:00:26]} Rxc6 {[%emt 0:00:07]} 55. Ka4 {[%emt 0:00:27]} Rc5 {[%emt 0:00:48]} 56. f4 {[%emt 0:00:08]} Kg7 {[%emt 0:00:30]} 57. fxe5 {[%emt 0:00:21]} h6 {[%emt 0:00:49]} 58. Kb3 {[%emt 0:01:03]} Kg6 {[%emt 0:00:26]} 59. g4 {[%emt 0:00:31]} Rc6 {[%emt 0:00:41]} 60. Rf4 {[%emt 0:00:31]} Rc5 {[%emt 0:00:26]} 61. Rf5 {[%emt 0:00:11]} Rc6 {[%emt 0:00:17]} 62. Rf4 {[%emt 0:00:05]} Rc5 {[%emt 0:00:22]} 63. Rf5 {[%emt 0:00:15]} Rc6 {[%emt 0:01:27]} 1/2-1/2

[Event "British Championship 2024"]
[Site "Hull"]
[Date "2024.07.31"]
[Round "1.14"]
[White "Willow, Jonah B"]
[Black "Banerjee, Supratit"]
[Result "1-0"]
[Annotator "RC"]
[ECO "B12"]
[WhiteElo "2422"]
[BlackElo "2115"]
[PlyCount "109"]
[EventDate "2024.07.31"]
[EventCountry "GBR"]
[SourceTitle "playchess.com"]
[Source "ChessBase"]
[SourceQuality "1"]
[TimeControl "40/5400+30:1800+30"]

1. e4 {[%emt 0:02:40]} c6 {[%emt 0:00:08]} 2. d4 {[%emt 0:00:49]} d5 {[%emt 0:00:13]} 3. e5 {[%emt 0:00:22]} Bf5 {[%emt 0:00:09]} 4. Nf3 {[%emt 0:00:24]} e6 {[%emt 0:00:21]} 5. Be2 {[%emt 0:00:06]} Nd7 {[%emt 0:00:09]} 6. O-O {[%emt 0:00:08]} a5 {[%emt 0:00:05]} 7. Nc3 {[%emt 0:01:23]} h6 {[%emt 0:06:34]} 8. Bd2 {[%emt 0:08:58]} Ne7 {[%emt 0:04:43]} 9. h3 {[%emt 0:06:09]} Bg6 {[%emt 0:11:27]} 10. Re1 {[%emt 0:01:48]} Nf5 {[%emt 0:07:16]} 11. Bd3 {[%emt 0:08:59]} Be7 {[%emt 0:02:26]} 12. Ne2 {[%emt 0:04:32]} c5 {[%emt 0:05:06]} 13. Nf4 {[%emt 0:05:32]} c4 {[%emt 0:08:40]} 14. Bf1 {[%emt 0:02:35]} Bh7 {[%emt 0:02:06]} 15. b3 {[%emt 0:06:34]} g5 {[%emt 0:03:08]} 16. Nh5 {[%emt 0:08:29]} cxb3 {[%emt 0:02:27]} 17. axb3 {[%emt 0:01:39]} Bg6 {[%emt 0:00:39]} 18. Ng3 {[%emt 0:04:27]} Nxg3 {[%emt 0:01:27]} 19. fxg3 {[%emt 0:00:03]} h5 {[%emt 0:11:50]} 20. Nh2 {[%emt 0:05:32]} Qb6 {[%emt 0:03:58]} 21. c3 {[%emt 0:01:52]} Rc8 {[%emt 0:03:29]} 22. g4 {[%emt 0:03:41]} Kf8 {[%emt 0:04:43]} 23. Kh1 {[%emt 0:03:20]} Kg7 {[%emt 0:01:44]} 24. Be2 {[%emt 0:01:45]} hxg4 {[%emt 0:02:22]} 25. Bxg4 {[%emt 0:00:16]} Rh7 {[%emt 0:01:30]} 26. Rf1 {[%emt 0:06:11]} Qd8 {[%emt 0:07:08]} 27. Qe2 {[%emt 0:02:29]} Qb6 {[%emt 0:01:46]} 28. Nf3 {[%emt 0:02:54]} Qxb3 {[%emt 0:02:11]} 29. Bxg5 {[%emt 0:03:44]} Re8 {[%emt 0:01:27]} 30. Bxe7 {[%emt 0:03:34]} Rxe7 {[%emt 0:00:12]} 31. Qe3 {[%emt 0:01:26]} Re8 {[%emt 0:02:06]} 32. Ng5 {[%emt 0:00:43]} Rhh8 {[%emt 0:01:28]} 33. Bd1 {[%emt 0:01:30]} Qb2 {[%emt 0:00:47]} 34. Be2 {[%emt 0:02:12]} Rc8 {[%emt 0:01:01]} 35. Rac1 {[%emt 0:00:17]} a4 {[%emt 0:00:55]} 36. Nxf7 {[%emt 0:00:54]} Bxf7 {[%emt 0:01:39]} 37. Qg5+ {[%emt 0:00:01]} Bg6 {[%emt 0:00:27]} 38. Bd3 {[%emt 0:00:47]} Rh6 {[%emt 0:00:30]} 39. Qe7+ {[%emt 0:00:43]} Kh8 {[%emt 0:00:21]} 40. Qg5 {[%emt 0:00:31]} Kg7 {[%emt 0:01:18]} 41. Rb1 {[%emt 0:24:25]} Qxc3 {[%emt 0:02:31]} 42. Rxb7 {[%emt 0:01:52]} Qc6 {[%emt 0:13:05]} 43. Qe7+ {[%emt 0:01:13]} Kg8 {[%emt 0:00:56]} 44. Rxd7 {[%emt 0:00:17]} Rh7 {[%emt 0:00:21]} 45. Rd8+ {[%emt 0:00:32]} Rxd8 {[%emt 0:00:21]} 46. Qxd8+ {[%emt 0:00:04]} Qe8 {[%emt 0:00:12]} 47. Qxe8+ {[%emt 0:00:09]} Bxe8 {[%emt 0:00:08]} 48. Bxh7+ {[%emt 0:00:03]} Kxh7 {[%emt 0:00:08]} 49. Rf8 {[%emt 0:00:11]} Bb5 {[%emt 0:00:09]} 50. Kh2 {[%emt 0:00:46]} Bc4 {[%emt 0:00:09]} 51. Ra8 {[%emt 0:00:05]} Bb3 {[%emt 0:00:04]} 52. Kg3 {[%emt 0:00:04]} Kg6 {[%emt 0:00:06]} 53. Kf4 {[%emt 0:00:04]} Bc2 {[%emt 0:00:27]} 54. g4 {[%emt 0:00:07]} Bb3 {[%emt 0:00:06]} 55. h4 {[%emt 0:00:03]} 1-0

[Event "British Championship 2024"]
[Site "Hull"]
[Date "2024.07.31"]
[Round "1.15"]
[White "Mitchell, Martin"]
[Black "Pert, Richard G"]
[Result "1/2-1/2"]
[Annotator "RC"]
[ECO "D02"]
[WhiteElo "2159"]
[BlackElo "2415"]
[PlyCount "36"]
[EventDate "2024.07.31"]
[EventCountry "GBR"]
[SourceTitle "playchess.com"]
[Source "ChessBase"]
[SourceQuality "1"]
[TimeControl "40/5400+30:1800+30"]

1. d4 {[%emt 0:00:06]} Nf6 {[%emt 0:00:23]} 2. Nf3 {[%emt 0:00:37]} d5 {[%emt 0:00:33]} 3. Bf4 {[%emt 0:00:11]} e6 {[%emt 0:02:58]} 4. e3 {[%emt 0:01:15]} Bd6 {[%emt 0:00:07]} 5. Nbd2 {[%emt 0:01:45]} O-O {[%emt 0:00:48]} 6. Bd3 {[%emt 0:04:54]} b6 {[%emt 0:08:14]} 7. Ne5 {[%emt 0:12:52]} Ba6 {[%emt 0:09:41]} 8. Bxa6 {[%emt 0:03:36]} Nxa6 {[%emt 0:00:11]} 9. Qe2 {[%emt 0:00:48]} Nb8 {[%emt 0:05:37]} 10. O-O {[%emt 0:06:16]} c5 {[%emt 0:08:33]} 11. c3 {[%emt 0:06:56]} Qc7 {[%emt 0:02:45]} 12. e4 {[%emt 0:07:45]} Nc6 {[%emt 0:06:08]} 13. Bg3 {[%emt 0:08:10]} Nxe4 {[%emt 0:18:10]} 14. Nxe4 {[%emt 0:00:56]} dxe4 {[%emt 0:00:06]} 15. Qxe4 {[%emt 0:00:39]} Nxe5 {[%emt 0:00:37]} 16. Bxe5 {[%emt 0:03:52]} cxd4 {[%emt 0:01:32]} 17. Bxd6 {[%emt 0:00:38]} Qxd6 {[%emt 0:00:22]} 18. Rad1 {[%emt 0:02:47]} e5 {[%emt 0:32:45]} 1/2-1/2

[Event "British Championship 2024"]
[Site "Hull"]
[Date "2024.07.31"]
[Round "1.16"]
[White "Motwani, Paul"]
[Black "Bradbury, Neil H"]
[Result "1-0"]
[Annotator "RC"]
[ECO "B10"]
[WhiteElo "2414"]
[BlackElo "2153"]
[PlyCount "92"]
[EventDate "2024.07.31"]
[EventCountry "GBR"]
[SourceTitle "playchess.com"]
[Source "ChessBase"]
[SourceQuality "1"]
[TimeControl "40/5400+30:1800+30"]

1. e4 {[%emt 0:00:04]} c6 {[%emt 0:00:28]} 2. c4 {[%emt 0:00:16]} d5 {[%emt 0:00:25]} 3. exd5 {[%emt 0:00:23]} cxd5 {[%emt 0:00:08]} 4. cxd5 {[%emt 0:00:11]} Nf6 {[%emt 0:00:32]} 5. Nf3 {[%emt 0:00:28]} g6 {[%emt 0:02:27]} 6. Nc3 {[%emt 0:00:30]} Bg7 {[%emt 0:00:13]} 7. Bc4 {[%emt 0:02:23]} O-O {[%emt 0:00:22]} 8. O-O {[%emt 0:00:19]} Na6 {[%emt 0:13:18]} 9. d4 {[%emt 0:04:21]} Nc7 {[%emt 0:07:46]} 10. Bg5 {[%emt 0:11:38]} a6 {[%emt 0:08:16]} 11. Re1 {[%emt 0:15:04]} b5 {[%emt 0:03:39]} 12. Bb3 {[%emt 0:01:04]} Bb7 {[%emt 0:00:19]} 13. a4 {[%emt 0:09:00]} b4 {[%emt 0:10:18]} 14. Ne2 {[%emt 0:01:02]} Ncxd5 {[%emt 0:01:08]} 15. Ng3 {[%emt 0:01:30]} h6 {[%emt 0:05:25]} 16. Bd2 {[%emt 0:02:38]} a5 {[%emt 0:00:35]} 17. h4 {[%emt 0:03:02]} e6 {[%emt 0:05:51]} 18. h5 {[%emt 0:09:15]} g5 {[%emt 0:01:39]} 19. Nxg5 {[%emt 0:01:24]} hxg5 {[%emt 0:04:33]} 20. Bxg5 {[%emt 0:00:16]} Qd6 {[%emt 0:01:16]} 21. h6 {[%emt 0:05:00]} Bh8 {[%emt 0:02:12]} 22. Nh5 {[%emt 0:01:47]} Nh7 {[%emt 0:08:52]} 23. Bf4 {[%emt 0:03:43]} Nxf4 {[%emt 0:11:18]} 24. Qg4+ {[%emt 0:00:24]} Ng5 {[%emt 0:00:11]} 25. Qxg5+ {[%emt 0:01:57]} Kh7 {[%emt 0:00:10]} 26. Nxf4 {[%emt 0:02:31]} Bxd4 {[%emt 0:04:09]} 27. Rxe6 {[%emt 0:06:46]} Qc5 {[%emt 0:04:46]} 28. Qxc5 {[%emt 0:05:27]} Bxc5 {[%emt 0:00:01]} 29. Rf6 {[%emt 0:02:03]} Bd4 {[%emt 0:01:12]} 30. Rxf7+ {[%emt 0:01:32]} Rxf7 {[%emt 0:00:10]} 31. Bxf7 {[%emt 0:00:07]} Rf8 {[%emt 0:01:20]} 32. Ne6 {[%emt 0:07:22]} Bxf2+ {[%emt 0:00:40]} 33. Kxf2 {[%emt 0:00:24]} Rxf7+ {[%emt 0:00:05]} 34. Kg3 {[%emt 0:00:58]} Rf6 {[%emt 0:00:48]} 35. Nf4 {[%emt 0:00:34]} Rd6 {[%emt 0:00:48]} 36. Re1 {[%emt 0:00:53]} Bc6 {[%emt 0:00:24]} 37. b3 {[%emt 0:00:58]} Kxh6 {[%emt 0:00:21]} 38. Re5 {[%emt 0:00:28]} Kg7 {[%emt 0:01:30]} 39. Rxa5 {[%emt 0:00:26]} Rd2 {[%emt 0:01:12]} 40. Rc5 {[%emt 0:01:12]} Be8 {[%emt 0:00:42]} 41. Rc4 {[%emt 0:30:33]} Bf7 {[%emt 0:01:09]} 42. Rxb4 {[%emt 0:00:00]} Rb2 {[%emt 0:02:02]} 43. a5 {[%emt 0:00:00]} Ra2 {[%emt 0:01:55]} 44. Ra4 {[%emt 0:00:00]} Rb2 {[%emt 0:00:07]} 45. a6 {[%emt 0:00:00]} Rxb3+ {[%emt 0:00:10]} 46. Kf2 {[%emt 0:00:00]} Rb8 {[%emt 0:00:27]} 1-0

[Event "British Championship 2024"]
[Site "Hull"]
[Date "2024.07.31"]
[Round "1.17"]
[White "Stubbs, Oliver"]
[Black "Han, Yichen"]
[Result "0-1"]
[Annotator "RC"]
[ECO "A43"]
[WhiteElo "2146"]
[BlackElo "2414"]
[PlyCount "104"]
[EventDate "2024.07.31"]
[EventCountry "GBR"]
[SourceTitle "playchess.com"]
[Source "ChessBase"]
[SourceQuality "1"]
[TimeControl "40/5400+30:1800+30"]

1. d4 {[%emt 0:00:03]} Nf6 {[%emt 0:00:03]} 2. Nf3 {[%emt 0:00:16]} c5 {[%emt 0:00:08]} 3. d5 {[%emt 0:00:15]} b5 {[%emt 0:00:06]} 4. Bg5 {[%emt 0:00:24]} g6 {[%emt 0:00:06]} 5. Bxf6 {[%emt 0:02:15]} exf6 {[%emt 0:00:04]} 6. e4 {[%emt 0:01:14]} b4 {[%emt 0:00:04]} 7. Nbd2 {[%emt 0:03:29]} Bg7 {[%emt 0:01:13]} 8. Bd3 {[%emt 0:02:32]} O-O {[%emt 0:00:08]} 9. O-O {[%emt 0:00:06]} d6 {[%emt 0:00:03]} 10. Nc4 {[%emt 0:02:06]} Qc7 {[%emt 0:00:06]} 11. Re1 {[%emt 0:03:56]} Nd7 {[%emt 0:04:02]} 12. Qc1 {[%emt 0:12:58]} Nb6 {[%emt 0:18:47]} 13. Qf4 {[%emt 0:06:02]} Nxc4 {[%emt 0:06:07]} 14. Bxc4 {[%emt 0:00:08]} Re8 {[%emt 0:01:50]} 15. Bb5 {[%emt 0:06:32]} Bd7 {[%emt 0:05:43]} 16. Bxd7 {[%emt 0:01:26]} Qxd7 {[%emt 0:00:05]} 17. Nd2 {[%emt 0:16:24]} f5 {[%emt 0:02:34]} 18. Nc4 {[%emt 0:07:12]} Rxe4 {[%emt 0:02:30]} 19. Qxd6 {[%emt 0:04:09]} Qb5 {[%emt 0:19:19]} 20. Rxe4 {[%emt 0:05:02]} fxe4 {[%emt 0:00:13]} 21. Qc6 {[%emt 0:02:12]} Qxc6 {[%emt 0:01:20]} 22. dxc6 {[%emt 0:00:12]} Rc8 {[%emt 0:01:51]} 23. Rd1 {[%emt 0:04:48]} Rxc6 {[%emt 0:02:28]} 24. Rd8+ {[%emt 0:01:16]} Bf8 {[%emt 0:00:06]} 25. Kf1 {[%emt 0:01:54]} Rc7 {[%emt 0:03:45]} 26. Ke2 {[%emt 0:02:58]} f5 {[%emt 0:03:32]} 27. Ne5 {[%emt 0:05:34]} Kg7 {[%emt 0:00:55]} 28. b3 {[%emt 0:01:01]} Be7 {[%emt 0:01:27]} 29. Ra8 {[%emt 0:00:54]} Bd6 {[%emt 0:03:19]} 30. f4 {[%emt 0:02:45]} Bxe5 {[%emt 0:06:03]} 31. fxe5 {[%emt 0:00:18]} Kf7 {[%emt 0:00:10]} 32. Ke3 {[%emt 0:01:07]} Ke6 {[%emt 0:01:19]} 33. Re8+ {[%emt 0:03:32]} Re7 {[%emt 0:02:41]} 34. Rc8 {[%emt 0:00:07]} Kd5 {[%emt 0:00:07]} 35. h4 {[%emt 0:01:19]} Rxe5 {[%emt 0:07:12]} 36. Rc7 {[%emt 0:00:35]} f4+ {[%emt 0:04:28]} 37. Kxf4 {[%emt 0:00:17]} Kd4 {[%emt 0:01:31]} 38. Rd7+ {[%emt 0:00:33]} Rd5 {[%emt 0:00:05]} 39. Rxh7 {[%emt 0:00:24]} e3 {[%emt 0:02:59]} 40. g4 {[%emt 0:01:23]} Rd8 {[%emt 0:00:47]} 41. Rf7 {[%emt 0:09:56]} c4 {[%emt 0:03:16]} 42. bxc4 {[%emt 0:01:42]} Re8 {[%emt 0:01:01]} 43. Rd7+ {[%emt 0:00:14]} Kxc4 {[%emt 0:00:07]} 44. Rd1 {[%emt 0:05:27]} e2 {[%emt 0:00:09]} 45. Re1 {[%emt 0:00:01]} Kc3 {[%emt 0:00:07]} 46. Kg5 {[%emt 0:00:44]} Re6 {[%emt 0:00:50]} 47. Rxe2 {[%emt 0:02:09]} Rxe2 {[%emt 0:00:04]} 48. Kxg6 {[%emt 0:00:06]} Rxc2 {[%emt 0:00:14]} 49. h5 {[%emt 0:00:10]} Rxa2 {[%emt 0:00:05]} 50. h6 {[%emt 0:00:08]} Rh2 {[%emt 0:00:05]} 51. g5 {[%emt 0:00:20]} b3 {[%emt 0:00:06]} 52. Kg7 {[%emt 0:00:13]} b2 {[%emt 0:00:05]} 0-1

[Event "British Championship 2024"]
[Site "Hull"]
[Date "2024.07.31"]
[Round "1.19"]
[White "Kalaiyalahan, Akshaya"]
[Black "Hebden, Mark L"]
[Result "0-1"]
[Annotator "TA"]
[ECO "E66"]
[WhiteElo "2140"]
[BlackElo "2398"]
[PlyCount "72"]
[EventDate "2024.07.31"]
[EventCountry "GBR"]
[SourceTitle "playchess.com"]
[Source "ChessBase"]
[SourceQuality "1"]
[TimeControl "40/5400+30:1800+30"]

{[%evp 20,72,1,0,12,0,0,-12,-12,0,0,-99,-91,-89,-89,-94,-90,-97,-105,-88,-47,-60,-83,-100,-95,-95,-116,-111,-124,-139,-105,-159,-156,-238,-249,-247,-234,-383,-364,-335,-357,-389,-368,-352,-335,-428,-429,-804,-820,-848,-812,-1148,-1266,-1211,-1231]} 1. d4 {[%emt 0:00:03]} Nf6 {[%emt 0:01:02]} 2. c4 {[%emt 0:00:10]} g6 {[%emt 0:00:41]} 3. g3 {[%emt 0:00:12]} Bg7 {[%emt 0:00:50]} 4. Bg2 {[%emt 0:00:11]} O-O {[%emt 0:00:27]} 5. Nc3 {[%emt 0:00:21]} d6 {[%emt 0:00:24]} 6. Nf3 {[%emt 0:00:11]} c5 {[%emt 0:00:39]} 7. O-O {[%emt 0:00:26]} Nc6 {[%emt 0:00:57]} 8. d5 {[%emt 0:00:25]} Na5 {[%emt 0:00:26]} 9. Nd2 {[%emt 0:00:15]} e6 {[%emt 0:01:07]} 10. Rb1 {[%emt 0:01:03]} exd5 {[%emt 0:00:24]} 11. cxd5 {[%emt 0:00:05]} Bd7 {[%emt 0:00:14]} 12. Nde4 {[%emt 0:02:11]} Ne8 {[%emt 0:00:10]} 13. Bg5 {[%emt 0:02:40]} f6 $1 {[%emt 0:00:07] The position is equal.} 14. Bf4 {[%emt 0:01:21]} Qe7 {[%emt 0:00:09]} 15. Nd2 {[%emt 0:18:10]} ({Of course not} 15. b4 cxb4 16. Na4 (16. Rxb4 f5 $17) 16... b5 $15) (15. a4 $11 {remains equal.}) 15... g5 $1 $17 {[%emt 0:17:03]} 16. Be3 {[%emt 0:00:04]} f5 {[%emt 0:02:21] ...f4 is the strong threat.} 17. Nb3 {[%emt 0:01:55]} Nc4 {[%emt 0:03:53]} 18. Bc1 {[%emt 0:01:37]} f4 $36 {[%emt 0:00:46][%mdl 2048] White is under strong pressure.} 19. Nd2 {[%emt 0:02:36]} Ne5 {[%emt 0:03:30] Black is much more active.} 20. b4 {[%emt 0:15:48]} c4 {[%emt 0:03:46] White is now going downhill.} 21. Bb2 {[%emt 0:10:53]} g4 {[%emt 0:01:55]} 22. Nce4 {[%emt 0:09:03]} Rc8 {[%emt 0:00:54]} 23. Bc3 {[%emt 0:08:32]} b5 {[%emt 0:07:16]} 24. gxf4 {[%emt 0:11:53]} Rxf4 {[%emt 0:00:28]} 25. Qc1 {[%emt 0:02:21]} ({White should try} 25. Rc1) 25... Rf7 {[%emt 0:03:10]} 26. f4 {[%emt 0:05:42]} (26. Ng3 $17) 26... Ng6 $1 $19 {[%emt 0:05:59]} 27. e3 {[%emt 0:01:36]} Nh4 {[%emt 0:00:37]} 28. Bxg7 {[%emt 0:02:27]} (28. Re1 {keeps fighting.}) 28... Nxg7 {[%emt 0:00:28]} ({Weaker is} 28... Kxg7 29. Qc3+ Kg8 30. Bh1 $17) 29. Qc3 {[%emt 0:00:20] [#]} Nxg2 {[%emt 0:02:40]} 30. Kxg2 {[%emt 0:00:04] [#]} Bf5 $1 {[%emt 0:00:53]} 31. Ng5 {[%emt 0:01:20]} Bxb1 {[%emt 0:00:24]} 32. Rxb1 {[%emt 0:01:07]} Rf5 {[%emt 0:00:30] Black is clearly winning.} 33. Rf1 {[%emt 0:00:34]} (33. Nge4 $142) 33... Rxd5 {[%emt 0:01:57] aiming for ...Rd3.} 34. Nde4 {[%emt 0:00:13]} Rf8 {[%emt 0:00:38]} 35. Qc2 {[%emt 0:00:32]} Nf5 {[%emt 0:01:20]} 36. Qe2 {[%emt 0:00:06]} h6 {[%emt 0:01:51] Weighted Error Value: White=0.71/Black=0.02 (flawless) .  Mistake:       	White=5     	---        Inaccurate:     	---       	Black=1      OK:         	White=7     	Black=11     Best:        	---       	Black=2      Strong:       	---       	Black=3} 0-1